{"text_format":"1","workbook":"xlsx","n_sheets":5,"sheets":["Inputs","IDAP","Issues","IDRS","Templates"],"not_rendered":{"charts":0,"images":0,"macros":1,"external_links":0,"defined_names":8,"comments":0,"pivot_tables":0},"unopened":[],"bounds":{"document_bytes":16777216,"sheet_cells":100000,"rows_first":2000,"rows_last":500,"rows_between":2000,"halvings":0,"cell_chars":16384,"cell_head_chars":4096},"cells_cut":0,"cells_raw":0,"read":"whole","date_system":"1900"}

{"sheet":"Inputs","index":0,"n_rows":193,"n_cols":24,"rows_kept":193,"cut":false,"hidden":false,"merged":[[17,0,17,4],[18,0,18,4],[11,0,11,3],[12,0,12,3],[13,0,13,3],[14,0,14,3],[15,0,15,4],[16,0,16,4],[16,5,16,11],[0,7,1,9],[0,12,1,14],[6,0,6,3],[7,0,7,3],[8,0,8,3],[9,0,9,3],[10,0,10,3],[1,0,1,3],[2,0,2,3],[3,0,3,3],[4,0,4,3],[5,0,5,3]]}
[null,null,null,null,null,null,null,"IMF",null,null,null,null,"BMF"]
["Business Name",null,null,null,null,null,null,null,null,null,null,null,null,null,null,null,null,null,null,null,{"$f":"VLOOKUP(F9,A100:B193,2,FALSE)","v":{"$error":"#N/A"}},{"$f":"VLOOKUP(F7,C100:D104,2,FALSE)","v":{"$error":"#N/A"}}]
["First Name",null,null,null,null,null,{"$f":"F3&\" \" &F4","v":" "},null,null,null,null,null,null,null,null,null,null,null,null,null,{"$f":"VLOOKUP(F9,A100:B198,2,FALSE)","v":{"$error":"#N/A"}},{"$f":"VLOOKUP(F7,C100:D104,2,FALSE)","v":{"$error":"#N/A"}}]
["Last Name",null,null,null,null,null,{"$f":"CONCATENATE(F4,\" \",F3)","v":" "}]
["Address"]
["City"]
["State"]
["Zip"]
["County"]
["Entity Type",null,null,null,null,"Entity Type"]
["TIN"]
["Directory Assistance"]
["Register of Deeds"]
["Assessor"]
["Secretary of State"]
[]
[null,null,null,null,null,"Miscellaneous Google Search"]
[]
[]
[]
[]
[]
[]
[]
[]
[]
[]
[]
[]
[]
[]
[]
[]
[]
[]
[]
[]
[]
[]
[]
[]
[]
[]
[]
[]
[]
[]
[]
[]
[]
[]
[]
[]
[]
[]
[]
[]
[]
[]
[]
[]
[]
[]
[]
[]
[]
[]
[]
[]
[]
[]
[]
[]
[]
[]
[]
[]
[]
[]
[]
[]
[]
[]
[]
[]
[]
[]
[]
[]
[]
[]
[]
[]
[]
[]
[]
[]
[]
[]
["anderson",{"$f":"HYPERLINK(\"http://www.assessment.state.tn.us/SelectCounty.asp?map=true&SelectCounty=001\")","v":"http://www.assessment.state.tn.us/SelectCounty.asp?map=true&SelectCounty=001"},"TN","http://tnbear.tn.gov/ECommerce/FilingSearch.aspx"]
["bedford",{"$f":"HYPERLINK(\"http://www.assessment.state.tn.us/SelectCounty.asp?map=true&SelectCounty=002\")","v":"http://www.assessment.state.tn.us/SelectCounty.asp?map=true&SelectCounty=002"},"GA","http://corp.sos.state.ga.us/corp/soskb/csearch.asp"]
["benton",{"$f":"HYPERLINK(\"http://www.assessment.state.tn.us/SelectCounty.asp?map=true&SelectCounty=003\")","v":"http://www.assessment.state.tn.us/SelectCounty.asp?map=true&SelectCounty=003"},"AL","http://arc-sos.state.al.us/cgi/corpname.mbr/input"]
["bledsoe",{"$f":"HYPERLINK(\"http://www.assessment.state.tn.us/SelectCounty.asp?map=true&SelectCounty=004\")","v":"http://www.assessment.state.tn.us/SelectCounty.asp?map=true&SelectCounty=004"},"FL","http://sunbiz.org/corinam.html"]
["blount",{"$f":"HYPERLINK(\"http://www.assessment.state.tn.us/SelectCounty.asp?map=true&SelectCounty=005\")","v":"http://www.assessment.state.tn.us/SelectCounty.asp?map=true&SelectCounty=005"},null,null,null,null,null,null,null,null,null,null,null,null,null,null,null,null,null,null,null,null,null,"Entity Type"]
["bradley",{"$f":"HYPERLINK(\"http://www.assessment.state.tn.us/SelectCounty.asp?map=true&SelectCounty=006\")","v":"http://www.assessment.state.tn.us/SelectCounty.asp?map=true&SelectCounty=006"},null,null,null,null,null,null,null,null,null,null,null,null,null,null,null,null,null,null,null,null,null,"101 IND-WAGE EARNER                    "]
["campbell",{"$f":"HYPERLINK(\"http://www.assessment.state.tn.us/SelectCounty.asp?map=true&SelectCounty=007\")","v":"http://www.assessment.state.tn.us/SelectCounty.asp?map=true&SelectCounty=007"},null,null,null,null,null,null,null,null,null,null,null,null,null,null,null,null,null,null,null,null,null,"102 IND-SELF EMPLOYED                  "]
["cannon",{"$f":"HYPERLINK(\"http://www.assessment.state.tn.us/SelectCounty.asp?map=true&SelectCounty=008\")","v":"http://www.assessment.state.tn.us/SelectCounty.asp?map=true&SelectCounty=008"},null,null,null,null,null,null,null,null,null,null,null,null,null,null,null,null,null,null,null,null,null,"103 IND-COMBINED WAGE/SELF             "]
["carroll",{"$f":"HYPERLINK(\"http://www.assessment.state.tn.us/SelectCounty.asp?map=true&SelectCounty=009\")","v":"http://www.assessment.state.tn.us/SelectCounty.asp?map=true&SelectCounty=009"},null,null,null,null,null,null,null,null,null,null,null,null,null,null,null,null,null,null,null,null,null,"104 IND-TFRP-WAGE EARNER               "]
["carter",{"$f":"HYPERLINK(\"http://www.assessment.state.tn.us/SelectCounty.asp?map=true&SelectCounty=010\")","v":"http://www.assessment.state.tn.us/SelectCounty.asp?map=true&SelectCounty=010"},null,null,null,null,null,null,null,null,null,null,null,null,null,null,null,null,null,null,null,null,null,"105 IND-TFRP-SELF EMPLOYED             "]
["cheatham",{"$f":"HYPERLINK(\"http://www.assessment.state.tn.us/SelectCounty.asp?map=true&SelectCounty=011\")","v":"http://www.assessment.state.tn.us/SelectCounty.asp?map=true&SelectCounty=011"},null,null,null,null,null,null,null,null,null,null,null,null,null,null,null,null,null,null,null,null,null,"106 IND-TFRP-COMBINED WAGE/SELF        "]
["chester",{"$f":"HYPERLINK(\"http://www.assessment.state.tn.us/SelectCounty.asp?map=true&SelectCounty=012\")","v":"http://www.assessment.state.tn.us/SelectCounty.asp?map=true&SelectCounty=012"},null,null,null,null,null,null,null,null,null,null,null,null,null,null,null,null,null,null,null,null,null,"201 CORP-IN BUSINESS                   "]
["claiborne",{"$f":"HYPERLINK(\"http://www.assessment.state.tn.us/SelectCounty.asp?map=true&SelectCounty=013\")","v":"http://www.assessment.state.tn.us/SelectCounty.asp?map=true&SelectCounty=013"},null,null,null,null,null,null,null,null,null,null,null,null,null,null,null,null,null,null,null,null,null,"202 CORP-OUT OF BUSINESS               "]
["clay",{"$f":"HYPERLINK(\"http://www.assessment.state.tn.us/SelectCounty.asp?map=true&SelectCounty=014\")","v":"http://www.assessment.state.tn.us/SelectCounty.asp?map=true&SelectCounty=014"},null,null,null,null,null,null,null,null,null,null,null,null,null,null,null,null,null,null,null,null,null,"301 SOLE PROP-IN BUSINESS              "]
["cocke",{"$f":"HYPERLINK(\"http://www.assessment.state.tn.us/SelectCounty.asp?map=true&SelectCounty=015\")","v":"http://www.assessment.state.tn.us/SelectCounty.asp?map=true&SelectCounty=015"},null,null,null,null,null,null,null,null,null,null,null,null,null,null,null,null,null,null,null,null,null,"302 SOLE PROP-OUT OF BUSINESS          "]
["coffee",{"$f":"HYPERLINK(\"http://www.assessment.state.tn.us/SelectCounty.asp?map=true&SelectCounty=016\")","v":"http://www.assessment.state.tn.us/SelectCounty.asp?map=true&SelectCounty=016"},null,null,null,null,null,null,null,null,null,null,null,null,null,null,null,null,null,null,null,null,null,"401 PRTNR-IN BUSINESS                  "]
["crockett",{"$f":"HYPERLINK(\"http://www.assessment.state.tn.us/SelectCounty.asp?map=true&SelectCounty=017\")","v":"http://www.assessment.state.tn.us/SelectCounty.asp?map=true&SelectCounty=017"},null,null,null,null,null,null,null,null,null,null,null,null,null,null,null,null,null,null,null,null,null,"402 PRTNR-OUT OF BUSINESS              "]
["cumberland",{"$f":"HYPERLINK(\"http://www.assessment.state.tn.us/SelectCounty.asp?map=true&SelectCounty=018\")","v":"http://www.assessment.state.tn.us/SelectCounty.asp?map=true&SelectCounty=018"},null,null,null,null,null,null,null,null,null,null,null,null,null,null,null,null,null,null,null,null,null,"501 ESTATE-DECEDENT                    "]
["decatur",{"$f":"HYPERLINK(\"http://www.assessment.state.tn.us/SelectCounty.asp?map=true&SelectCounty=020\")","v":"http://www.assessment.state.tn.us/SelectCounty.asp?map=true&SelectCounty=020"},null,null,null,null,null,null,null,null,null,null,null,null,null,null,null,null,null,null,null,null,null,"502 ESTATE-FIDUCIARY                   "]
["dekalb",{"$f":"HYPERLINK(\"http://www.assessment.state.tn.us/SelectCounty.asp?map=true&SelectCounty=021\")","v":"http://www.assessment.state.tn.us/SelectCounty.asp?map=true&SelectCounty=021"},null,null,null,null,null,null,null,null,null,null,null,null,null,null,null,null,null,null,null,null,null,"601 LLC - IN BUSINESS                  "]
["dickson",{"$f":"HYPERLINK(\"http://www.assessment.state.tn.us/SelectCounty.asp?map=true&SelectCounty=022\")","v":"http://www.assessment.state.tn.us/SelectCounty.asp?map=true&SelectCounty=022"},null,null,null,null,null,null,null,null,null,null,null,null,null,null,null,null,null,null,null,null,null,"602 LLC - OUT OF BUSINESS              "]
["dyer",{"$f":"HYPERLINK(\"http://www.assessment.state.tn.us/SelectCounty.asp?map=true&SelectCounty=023\")","v":"http://www.assessment.state.tn.us/SelectCounty.asp?map=true&SelectCounty=023"}]
["fayette",{"$f":"HYPERLINK(\"http://www.assessment.state.tn.us/SelectCounty.asp?map=true&SelectCounty=024\")","v":"http://www.assessment.state.tn.us/SelectCounty.asp?map=true&SelectCounty=024"}]
["fentress",{"$f":"HYPERLINK(\"http://www.assessment.state.tn.us/SelectCounty.asp?map=true&SelectCounty=025\")","v":"http://www.assessment.state.tn.us/SelectCounty.asp?map=true&SelectCounty=025"}]
["franklin",{"$f":"HYPERLINK(\"http://www.assessment.state.tn.us/SelectCounty.asp?map=true&SelectCounty=026\")","v":"http://www.assessment.state.tn.us/SelectCounty.asp?map=true&SelectCounty=026"}]
["gibson",{"$f":"HYPERLINK(\"http://www.assessment.state.tn.us/SelectCounty.asp?map=true&SelectCounty=027\")","v":"http://www.assessment.state.tn.us/SelectCounty.asp?map=true&SelectCounty=027"}]
["giles",{"$f":"HYPERLINK(\"http://www.assessment.state.tn.us/SelectCounty.asp?map=true&SelectCounty=028\")","v":"http://www.assessment.state.tn.us/SelectCounty.asp?map=true&SelectCounty=028"}]
["grainger",{"$f":"HYPERLINK(\"http://www.assessment.state.tn.us/SelectCounty.asp?map=true&SelectCounty=029\")","v":"http://www.assessment.state.tn.us/SelectCounty.asp?map=true&SelectCounty=029"}]
["greene",{"$f":"HYPERLINK(\"http://www.assessment.state.tn.us/SelectCounty.asp?map=true&SelectCounty=030\")","v":"http://www.assessment.state.tn.us/SelectCounty.asp?map=true&SelectCounty=030"}]
["grundy",{"$f":"HYPERLINK(\"http://www.assessment.state.tn.us/SelectCounty.asp?map=true&SelectCounty=031\")","v":"http://www.assessment.state.tn.us/SelectCounty.asp?map=true&SelectCounty=031"}]
["hamblen",{"$f":"HYPERLINK(\"http://www.assessment.state.tn.us/SelectCounty.asp?map=true&SelectCounty=032\")","v":"http://www.assessment.state.tn.us/SelectCounty.asp?map=true&SelectCounty=032"}]
["hamilton","http://assessor.hamiltontn.gov/PropertyInquiry/InquiryHome/PropertySearch.aspx"]
["hancock",{"$f":"HYPERLINK(\"http://www.assessment.state.tn.us/SelectCounty.asp?map=true&SelectCounty=034\")","v":"http://www.assessment.state.tn.us/SelectCounty.asp?map=true&SelectCounty=034"}]
["hardeman",{"$f":"HYPERLINK(\"http://www.assessment.state.tn.us/SelectCounty.asp?map=true&SelectCounty=035\")","v":"http://www.assessment.state.tn.us/SelectCounty.asp?map=true&SelectCounty=035"}]
["hardin",{"$f":"HYPERLINK(\"http://www.assessment.state.tn.us/SelectCounty.asp?map=true&SelectCounty=036\")","v":"http://www.assessment.state.tn.us/SelectCounty.asp?map=true&SelectCounty=036"}]
["hawkins",{"$f":"HYPERLINK(\"http://www.assessment.state.tn.us/SelectCounty.asp?map=true&SelectCounty=037\")","v":"http://www.assessment.state.tn.us/SelectCounty.asp?map=true&SelectCounty=037"}]
["haywood",{"$f":"HYPERLINK(\"http://www.assessment.state.tn.us/SelectCounty.asp?map=true&SelectCounty=038\")","v":"http://www.assessment.state.tn.us/SelectCounty.asp?map=true&SelectCounty=038"}]
["henderson",{"$f":"HYPERLINK(\"http://www.assessment.state.tn.us/SelectCounty.asp?map=true&SelectCounty=039\")","v":"http://www.assessment.state.tn.us/SelectCounty.asp?map=true&SelectCounty=039"}]
["henry",{"$f":"HYPERLINK(\"http://www.assessment.state.tn.us/SelectCounty.asp?map=true&SelectCounty=040\")","v":"http://www.assessment.state.tn.us/SelectCounty.asp?map=true&SelectCounty=040"}]
["hickman",{"$f":"HYPERLINK(\"http://www.assessment.state.tn.us/SelectCounty.asp?map=true&SelectCounty=041\")","v":"http://www.assessment.state.tn.us/SelectCounty.asp?map=true&SelectCounty=041"}]
["houston",{"$f":"HYPERLINK(\"http://www.assessment.state.tn.us/SelectCounty.asp?map=true&SelectCounty=042\")","v":"http://www.assessment.state.tn.us/SelectCounty.asp?map=true&SelectCounty=042"}]
["humphreys",{"$f":"HYPERLINK(\"http://www.assessment.state.tn.us/SelectCounty.asp?map=true&SelectCounty=043\")","v":"http://www.assessment.state.tn.us/SelectCounty.asp?map=true&SelectCounty=043"}]
["jackson",{"$f":"HYPERLINK(\"http://www.assessment.state.tn.us/SelectCounty.asp?map=true&SelectCounty=044\")","v":"http://www.assessment.state.tn.us/SelectCounty.asp?map=true&SelectCounty=044"}]
["jefferson",{"$f":"HYPERLINK(\"http://www.assessment.state.tn.us/SelectCounty.asp?map=true&SelectCounty=045\")","v":"http://www.assessment.state.tn.us/SelectCounty.asp?map=true&SelectCounty=045"}]
["johnson",{"$f":"HYPERLINK(\"http://www.assessment.state.tn.us/SelectCounty.asp?map=true&SelectCounty=046\")","v":"http://www.assessment.state.tn.us/SelectCounty.asp?map=true&SelectCounty=046"}]
["knox",{"$f":"HYPERLINK(\"http://www.assessment.state.tn.us/SelectCounty.asp?map=true&SelectCounty=047\")","v":"http://www.assessment.state.tn.us/SelectCounty.asp?map=true&SelectCounty=047"}]
["lake",{"$f":"HYPERLINK(\"http://www.assessment.state.tn.us/SelectCounty.asp?map=true&SelectCounty=048\")","v":"http://www.assessment.state.tn.us/SelectCounty.asp?map=true&SelectCounty=048"}]
["lauderdale",{"$f":"HYPERLINK(\"http://www.assessment.state.tn.us/SelectCounty.asp?map=true&SelectCounty=049\")","v":"http://www.assessment.state.tn.us/SelectCounty.asp?map=true&SelectCounty=049"}]
["lawrence",{"$f":"HYPERLINK(\"http://www.assessment.state.tn.us/SelectCounty.asp?map=true&SelectCounty=050\")","v":"http://www.assessment.state.tn.us/SelectCounty.asp?map=true&SelectCounty=050"}]
["lewis",{"$f":"HYPERLINK(\"http://www.assessment.state.tn.us/SelectCounty.asp?map=true&SelectCounty=051\")","v":"http://www.assessment.state.tn.us/SelectCounty.asp?map=true&SelectCounty=051"}]
["lincoln",{"$f":"HYPERLINK(\"http://www.assessment.state.tn.us/SelectCounty.asp?map=true&SelectCounty=052\")","v":"http://www.assessment.state.tn.us/SelectCounty.asp?map=true&SelectCounty=052"}]
["loudon",{"$f":"HYPERLINK(\"http://www.assessment.state.tn.us/SelectCounty.asp?map=true&SelectCounty=053\")","v":"http://www.assessment.state.tn.us/SelectCounty.asp?map=true&SelectCounty=053"}]
["macon",{"$f":"HYPERLINK(\"http://www.assessment.state.tn.us/SelectCounty.asp?map=true&SelectCounty=056\")","v":"http://www.assessment.state.tn.us/SelectCounty.asp?map=true&SelectCounty=056"}]
["madison",{"$f":"HYPERLINK(\"http://www.assessment.state.tn.us/SelectCounty.asp?map=true&SelectCounty=057\")","v":"http://www.assessment.state.tn.us/SelectCounty.asp?map=true&SelectCounty=057"}]
["marion",{"$f":"HYPERLINK(\"http://www.assessment.state.tn.us/SelectCounty.asp?map=true&SelectCounty=058\")","v":"http://www.assessment.state.tn.us/SelectCounty.asp?map=true&SelectCounty=058"}]
["marshall",{"$f":"HYPERLINK(\"http://www.assessment.state.tn.us/SelectCounty.asp?map=true&SelectCounty=059\")","v":"http://www.assessment.state.tn.us/SelectCounty.asp?map=true&SelectCounty=059"}]
["maury",{"$f":"HYPERLINK(\"http://www.assessment.state.tn.us/SelectCounty.asp?map=true&SelectCounty=060\")","v":"http://www.assessment.state.tn.us/SelectCounty.asp?map=true&SelectCounty=060"}]
["mcminn",{"$f":"HYPERLINK(\"http://www.assessment.state.tn.us/SelectCounty.asp?map=true&SelectCounty=054\")","v":"http://www.assessment.state.tn.us/SelectCounty.asp?map=true&SelectCounty=054"}]
["mcnairy",{"$f":"HYPERLINK(\"http://www.assessment.state.tn.us/SelectCounty.asp?map=true&SelectCounty=055\")","v":"http://www.assessment.state.tn.us/SelectCounty.asp?map=true&SelectCounty=055"}]
["meigs",{"$f":"HYPERLINK(\"http://www.assessment.state.tn.us/SelectCounty.asp?map=true&SelectCounty=061\")","v":"http://www.assessment.state.tn.us/SelectCounty.asp?map=true&SelectCounty=061"}]
["monroe",{"$f":"HYPERLINK(\"http://www.assessment.state.tn.us/SelectCounty.asp?map=true&SelectCounty=062\")","v":"http://www.assessment.state.tn.us/SelectCounty.asp?map=true&SelectCounty=062"}]
["montgomery",{"$f":"HYPERLINK(\"http://www.assessment.state.tn.us/SelectCounty.asp?map=true&SelectCounty=063\")","v":"http://www.assessment.state.tn.us/SelectCounty.asp?map=true&SelectCounty=063"}]
["moore",{"$f":"HYPERLINK(\"http://www.assessment.state.tn.us/SelectCounty.asp?map=true&SelectCounty=064\")","v":"http://www.assessment.state.tn.us/SelectCounty.asp?map=true&SelectCounty=064"}]
["morgan",{"$f":"HYPERLINK(\"http://www.assessment.state.tn.us/SelectCounty.asp?map=true&SelectCounty=065\")","v":"http://www.assessment.state.tn.us/SelectCounty.asp?map=true&SelectCounty=065"}]
["obion",{"$f":"HYPERLINK(\"http://www.assessment.state.tn.us/SelectCounty.asp?map=true&SelectCounty=066\")","v":"http://www.assessment.state.tn.us/SelectCounty.asp?map=true&SelectCounty=066"}]
["overton",{"$f":"HYPERLINK(\"http://www.assessment.state.tn.us/SelectCounty.asp?map=true&SelectCounty=067\")","v":"http://www.assessment.state.tn.us/SelectCounty.asp?map=true&SelectCounty=067"}]
["perry",{"$f":"HYPERLINK(\"http://www.assessment.state.tn.us/SelectCounty.asp?map=true&SelectCounty=068\")","v":"http://www.assessment.state.tn.us/SelectCounty.asp?map=true&SelectCounty=068"}]
["pickett",{"$f":"HYPERLINK(\"http://www.assessment.state.tn.us/SelectCounty.asp?map=true&SelectCounty=069\")","v":"http://www.assessment.state.tn.us/SelectCounty.asp?map=true&SelectCounty=069"}]
["polk",{"$f":"HYPERLINK(\"http://www.assessment.state.tn.us/SelectCounty.asp?map=true&SelectCounty=070\")","v":"http://www.assessment.state.tn.us/SelectCounty.asp?map=true&SelectCounty=070"}]
["putnam",{"$f":"HYPERLINK(\"http://www.assessment.state.tn.us/SelectCounty.asp?map=true&SelectCounty=071\")","v":"http://www.assessment.state.tn.us/SelectCounty.asp?map=true&SelectCounty=071"}]
["rhea",{"$f":"HYPERLINK(\"http://www.assessment.state.tn.us/SelectCounty.asp?map=true&SelectCounty=072\")","v":"http://www.assessment.state.tn.us/SelectCounty.asp?map=true&SelectCounty=072"}]
["roane",{"$f":"HYPERLINK(\"http://www.assessment.state.tn.us/SelectCounty.asp?map=true&SelectCounty=073\")","v":"http://www.assessment.state.tn.us/SelectCounty.asp?map=true&SelectCounty=073"}]
["robertson",{"$f":"HYPERLINK(\"http://www.assessment.state.tn.us/SelectCounty.asp?map=true&SelectCounty=074\")","v":"http://www.assessment.state.tn.us/SelectCounty.asp?map=true&SelectCounty=074"}]
["rutherford",{"$f":"HYPERLINK(\"http://www.assessment.state.tn.us/SelectCounty.asp?map=true&SelectCounty=075\")","v":"http://www.assessment.state.tn.us/SelectCounty.asp?map=true&SelectCounty=075"}]
["scott",{"$f":"HYPERLINK(\"http://www.assessment.state.tn.us/SelectCounty.asp?map=true&SelectCounty=076\")","v":"http://www.assessment.state.tn.us/SelectCounty.asp?map=true&SelectCounty=076"}]
["sequatchie",{"$f":"HYPERLINK(\"http://www.assessment.state.tn.us/SelectCounty.asp?map=true&SelectCounty=077\")","v":"http://www.assessment.state.tn.us/SelectCounty.asp?map=true&SelectCounty=077"}]
["sevier",{"$f":"HYPERLINK(\"http://www.assessment.state.tn.us/SelectCounty.asp?map=true&SelectCounty=078\")","v":"http://www.assessment.state.tn.us/SelectCounty.asp?map=true&SelectCounty=078"}]
["shelby",{"$f":"HYPERLINK(\"http://www.assessment.state.tn.us/SelectCounty.asp?map=true&SelectCounty=079\")","v":"http://www.assessment.state.tn.us/SelectCounty.asp?map=true&SelectCounty=079"}]
["smith",{"$f":"HYPERLINK(\"http://www.assessment.state.tn.us/SelectCounty.asp?map=true&SelectCounty=080\")","v":"http://www.assessment.state.tn.us/SelectCounty.asp?map=true&SelectCounty=080"}]
["stewart",{"$f":"HYPERLINK(\"http://www.assessment.state.tn.us/SelectCounty.asp?map=true&SelectCounty=081\")","v":"http://www.assessment.state.tn.us/SelectCounty.asp?map=true&SelectCounty=081"}]
["sullivan",{"$f":"HYPERLINK(\"http://www.assessment.state.tn.us/SelectCounty.asp?map=true&SelectCounty=082\")","v":"http://www.assessment.state.tn.us/SelectCounty.asp?map=true&SelectCounty=082"}]
["sumner",{"$f":"HYPERLINK(\"http://www.assessment.state.tn.us/SelectCounty.asp?map=true&SelectCounty=083\")","v":"http://www.assessment.state.tn.us/SelectCounty.asp?map=true&SelectCounty=083"}]
["tipton",{"$f":"HYPERLINK(\"http://www.assessment.state.tn.us/SelectCounty.asp?map=true&SelectCounty=084\")","v":"http://www.assessment.state.tn.us/SelectCounty.asp?map=true&SelectCounty=084"}]
["trousdale",{"$f":"HYPERLINK(\"http://www.assessment.state.tn.us/SelectCounty.asp?map=true&SelectCounty=085\")","v":"http://www.assessment.state.tn.us/SelectCounty.asp?map=true&SelectCounty=085"}]
["unicoi",{"$f":"HYPERLINK(\"http://www.assessment.state.tn.us/SelectCounty.asp?map=true&SelectCounty=086\")","v":"http://www.assessment.state.tn.us/SelectCounty.asp?map=true&SelectCounty=086"}]
["union",{"$f":"HYPERLINK(\"http://www.assessment.state.tn.us/SelectCounty.asp?map=true&SelectCounty=087\")","v":"http://www.assessment.state.tn.us/SelectCounty.asp?map=true&SelectCounty=087"}]
["van buren",{"$f":"HYPERLINK(\"http://www.assessment.state.tn.us/SelectCounty.asp?map=true&SelectCounty=088\")","v":"http://www.assessment.state.tn.us/SelectCounty.asp?map=true&SelectCounty=088"}]
["warren",{"$f":"HYPERLINK(\"http://www.assessment.state.tn.us/SelectCounty.asp?map=true&SelectCounty=089\")","v":"http://www.assessment.state.tn.us/SelectCounty.asp?map=true&SelectCounty=089"}]
["washington",{"$f":"HYPERLINK(\"http://www.assessment.state.tn.us/SelectCounty.asp?map=true&SelectCounty=090\")","v":"http://www.assessment.state.tn.us/SelectCounty.asp?map=true&SelectCounty=090"}]
["wayne",{"$f":"HYPERLINK(\"http://www.assessment.state.tn.us/SelectCounty.asp?map=true&SelectCounty=091\")","v":"http://www.assessment.state.tn.us/SelectCounty.asp?map=true&SelectCounty=091"}]
["weakley",{"$f":"HYPERLINK(\"http://www.assessment.state.tn.us/SelectCounty.asp?map=true&SelectCounty=092\")","v":"http://www.assessment.state.tn.us/SelectCounty.asp?map=true&SelectCounty=092"}]
["white",{"$f":"HYPERLINK(\"http://www.assessment.state.tn.us/SelectCounty.asp?map=true&SelectCounty=093\")","v":"http://www.assessment.state.tn.us/SelectCounty.asp?map=true&SelectCounty=093"}]
["williamson","http://www.assessment.state.tn.us/SelectCounty.asp?map=true&SelectCounty=094\""]
["wilson",{"$f":"HYPERLINK(\"http://www.assessment.state.tn.us/SelectCounty.asp?map=true&SelectCounty=095\")","v":"http://www.assessment.state.tn.us/SelectCounty.asp?map=true&SelectCounty=095"}]

{"sheet":"IDAP","index":1,"n_rows":2,"n_cols":1,"rows_kept":2,"cut":false,"hidden":false,"merged":[]}
["IDAP"]
["Click Here & Paste"]

{"sheet":"Issues","index":2,"n_rows":20,"n_cols":2,"rows_kept":20,"cut":false,"hidden":false,"merged":[[0,0,0,4],[15,0,15,3],[18,0,18,3]]}
[]
["L-1058's"]
[]
["L-3174's"]
[]
["L 3164's"]
[]
["pp4 4183 : ","Make Selection"]
[]
["Balance Periods : "]
["Total BalDue's"]
[]
["DelRet's : "]
[]
[]
["Resolution Plan"]
["-"]
[]
["Next Action"]
["-"]

{"sheet":"IDRS","index":3,"n_rows":23,"n_cols":2,"rows_kept":23,"cut":false,"hidden":false,"merged":[[0,0,3,0],[5,0,7,0],[9,0,12,0],[14,0,15,0],[17,0,18,0]]}
["INOLEX / CROSS REF."]
[null,"Name"]
[null,"TIN"]
[null,"Remarks"]
[]
["INOLES / SUMRY - "]
[null,"Filing Req's:"]
[null,"Year Est.:"]
[]
["BMFOLI / IMFOLI -"]
[null,"Deposit Schedule"]
[null,"Last Deposit"]
[null,"Est. Tax Pmts"]
[]
["RTVUE / BRTVU - "]
[null,"Last Return filed: "]
[]
["IRPRTR/ LEVYS/ SUPOL -"]
[null,"Wage & Earnings"]
[]
["NFTL (TC 582):","NFTL (TC 582)"]
[]
["CFINK:","CFINK"]

{"sheet":"Templates","index":4,"n_rows":200,"n_cols":22,"rows_kept":200,"cut":false,"hidden":false,"merged":[]}
[]
[{"$f":"IF(Inputs!F2=\"\",\"\",Inputs!F2)","v":""},null,null,null,null,null,null,null,null,null,null,null,null,null,null,null,null,null,"The Business","The Business"]
[{"$f":"IF(Inputs!G4=\"\",\"\",Inputs!F3&\" \"&Inputs!F4)","v":" "},null,null,null,null,null,null,null,null,null,null,null,null,null,null,null,null,null,"David Collins","David Collins"]
[{"$f":"IF(Inputs!F5=\"\",\"\",Inputs!F5)","v":""},null,null,null,null,null,null,null,null,null,null,null,null,null,null,null,null,null,"6830 Benwood Dr","6830 Benwood Dr"]
[{"$f":"IF(Inputs!F6=\"\",\"\",Inputs!F6&\",\"&\" \"&Inputs!F7&\" \"&Inputs!F8)","v":""},null,null,null,null,null,null,null,null,null,null,null,null,null,null,null,null,null,"Ooltewah, TN 37363","Ooltewah, TN 37363"]
[{"$f":"IF(Inputs!F9=\"\",\"\",Inputs!F9&\" \"&\"County\")","v":""},null,null,null,null,null,null,null,null,null,null,null,null,null,null,null,null,null,"Hamilton County","Hamilton County"]
[{"$f":"IF(Inputs!F10=\"Entity Type\",\"\",Inputs!F10)","v":""},null,null,null,null,null,null,null,null,null,null,null,null,null,null,null,null,null,"101 IND-WAGE EARNER                    ","101 IND-WAGE EARNER                    "]
[{"$f":"IF(Inputs!F11=\"\",\"\",Inputs!F11)","v":""},null,null,null,null,null,null,null,null,null,null,null,null,null,null,null,null,null,"260-21-4762","260-21-4762"]
["_____________________________________",null,null,null,null,null,null,null,null,null,null,null,null,null,null,null,null,null,"_____________________________________","_____________________________________"]
[{"$f":"IF(Issues!B10=\"\",\"\",\"TP has balances due as follows:\"&Issues!B10 &\" for a total due of $\"&Issues!B11)","v":""},null,null,null,null,null,null,null,null,null,null,null,null,null,null,null,null,null,"TP has balances due as follows:30 2006-200812 for a total due of $45897","TP has balances due as follows:30 2006-200812 for a total due of $45897"]
[{"$f":"IF(Issues!B13=\"\",\"\",\"TP has the following DelRet's \"&Issues!B13)","v":""},null,null,null,null,null,null,null,null,null,null,null,null,null,null,null,null,null,"TP has the following DelRet's 30 201012","TP has the following DelRet's 30 201012"]
[]
["The following letters need to be given to TP:",null,null,null,null,null,null,null,null,null,null,null,null,null,null,null,null,null,"The following letters need to be given to TP:","The following letters need to be given to TP:"]
[null,"pp 4, 4180",{"$f":"IF(Issues!B8=\"Make Selection\",\"\",Issues!B8)","v":""},null,null,null,null,null,null,null,null,null,null,null,null,null,null,null,null,null,"pp 4, 4180","UNKNOWN"]
[null,"L-1058",{"$f":"IF(Issues!B2=\"\",\"\",Issues!B2)","v":""},null,null,null,null,null,null,null,null,null,null,null,null,null,null,null,null,null,"L-1058","30 200612, 200712, 200412"]
[null,"L-3174",{"$f":"IF(Issues!B4=\"\",\"\",Issues!B4)","v":""},null,null,null,null,null,null,null,null,null,null,null,null,null,null,null,null,null,"L-3174","30 200812"]
[null,"L-3164",{"$f":"IF(Issues!B6=\"\",\"\",Issues!B6)","v":""},null,null,null,null,null,null,null,null,null,null,null,null,null,null,null,null,null,"L-3164","30 200812, 200912"]
[]
["RESOLUTION PLAN:",null,null,null,null,null,null,null,null,null,null,null,null,null,null,null,null,null,"RESOLUTION PLAN:","RESOLUTION PLAN:"]
[null,{"$f":"\"-\"","v":"-"},{"$f":"IF(Issues!B17=\"\",\"\",Issues!B17)","v":""},null,null,null,null,null,null,null,null,null,null,null,null,null,null,null,null,null,"-","Secure all returns & full payment"]
["NEXT ACTION:",null,null,null,null,null,null,null,null,null,null,null,null,null,null,null,null,null,"NEXT ACTION:","NEXT ACTION:"]
[null,{"$f":"\"-\"","v":"-"},{"$f":"IF(Issues!B20=\"\",\"\",Issues!B20)","v":""},null,null,null,null,null,null,null,null,null,null,null,null,null,null,null,null,null,"-","Field Call"]
["_____________________________________",null,null,null,null,null,null,null,null,null,null,null,null,null,null,null,null,null,"_____________________________________","_____________________________________"]
[]
["Locator Resources",null,null,null,null,null,null,null,null,null,null,null,null,null,null,null,null,null,"Locator Resources","Locator Resources"]
[null,"Dir Assist.:",{"$f":"IF(Inputs!F12=\"\",\"\",Inputs!F12)","v":""},null,null,null,null,null,null,null,null,null,null,null,null,null,null,null,null,null,"Dir Assist.:","Same as ICS"]
[null,"Reg. of Deeds:",{"$f":"IF(Inputs!F13=\"\",\"\",Inputs!F13)","v":""},null,null,null,null,null,null,null,null,null,null,null,null,null,null,null,null,null,"Reg. of Deeds:",""]
[null,"Assessor:",{"$f":"IF(Inputs!F14=\"\",\"\",Inputs!F14)","v":""},null,null,null,null,null,null,null,null,null,null,null,null,null,null,null,null,null,"Assessor:","Nothing Found"]
[null,"Sect'y of State:",{"$f":"IF(Inputs!F15=\"\",\"\",Inputs!F15)","v":""},null,null,null,null,null,null,null,null,null,null,null,null,null,null,null,null,null,"Sect'y of State:","No Records Found…"]
["_____________________________________",null,null,null,null,null,null,null,null,null,null,null,null,null,null,null,null,null,"_____________________________________","_____________________________________"]
["INOLEX / CROSS REFERENCE:",null,null,null,null,null,null,null,null,null,null,null,null,null,null,null,null,null,"INOLEX / CROSS REFERENCE:","INOLEX / CROSS REFERENCE:"]
[null,{"$f":"IF(IDRS!C2=\"\",\"\",IDRS!C2)","v":""},null,null,null,null,null,null,null,null,null,null,null,null,null,null,null,null,null,null,"Sherry Collins"]
[null,{"$f":"IF(IDRS!C3=\"\",\"\",IDRS!C3)","v":""},null,null,null,null,null,null,null,null,null,null,null,null,null,null,null,null,null,null,"548-25-9874"]
[null,{"$f":"IF(IDRS!C4=\"\",\"\",IDRS!C4)","v":""},null,null,null,null,null,null,null,null,null,null,null,null,null,null,null,null,null,null,"In compliance"]
[]
["INOLES / SUMRY ",null,{"$f":"IF(IDRS!C6=\"\",\"\",IDRS!C6)","v":""},null,null,null,null,null,null,null,null,null,null,null,null,null,null,null,"INOLES / SUMRY ","INOLES / SUMRY ",null,""]
[null,"Filing Req.-",{"$f":"IF(IDRS!C7=\"\",\"\",IDRS!C7)","v":""},null,null,null,null,null,null,null,null,null,null,null,null,null,null,null,null,null,"Filing Req.-",1040]
[null,"Year Est.-",{"$f":"IF(IDRS!C8=\"\",\"\",IDRS!C8)","v":""},null,null,null,null,null,null,null,null,null,null,null,null,null,null,null,null,null,"Year Est.-",1963]
[]
["BMFOLI / IMFOLI",null,{"$f":"IF(IDRS!C10=\"\",\"\",IDRS!C10)","v":""},null,null,null,null,null,null,null,null,null,null,null,null,null,null,null,"BMFOLI / IMFOLI","BMFOLI / IMFOLI",null,""]
[null,"Deposit Sched.-",{"$f":"IF(IDRS!C11=\"\",\"\",IDRS!C11)","v":""},null,null,null,null,null,null,null,null,null,null,null,null,null,null,null,null,null,"Deposit Sched.-","Monthly fileer"]
[null,"Last Deposit-",{"$f":"IF(IDRS!C12=\"\",\"\",IDRS!C12)","v":""},null,null,null,null,null,null,null,null,null,null,null,null,null,null,null,null,null,"Last Deposit-","None"]
[null,"Est. Tax Pmts.-",{"$f":"IF(IDRS!C13=\"\",\"\",IDRS!C13)","v":""},null,null,null,null,null,null,null,null,null,null,null,null,null,null,null,null,null,"Est. Tax Pmts.-","Not required"]
[]
["RTVUE / BRTVU",null,{"$f":"IF(IDRS!C15=\"\",\"\",IDRS!C15)","v":""},null,null,null,null,null,null,null,null,null,null,null,null,null,null,null,"RTVUE / BRTVU","RTVUE / BRTVU",null,""]
[null,"Last Return Filed-",{"$f":"IF(IDRS!C16=\"\",\"\",IDRS!C16)","v":""},null,null,null,null,null,null,null,null,null,null,null,null,null,null,null,null,null,"Last Return Filed-","30 200712"]
[]
["IRPTR/LEVYS/SUPOL",null,null,null,null,null,null,null,null,null,null,null,null,null,null,null,null,null,"IRPTR/LEVYS/SUPOL","IRPTR/LEVYS/SUPOL"]
[null,"Wage & Earnings-",{"$f":"IF(IDRS!C19=\"\",\"\",IDRS!C19)","v":""},null,null,null,null,null,null,null,null,null,null,null,null,null,null,null,null,null,"Wage & Earnings-","2009 was 12547"]
[]
["NFTL",null,null,null,null,null,null,null,null,null,null,null,null,null,null,null,null,null,"NFTL","NFTL"]
[null,{"$f":"\"-\"","v":"-"},{"$f":"IF(IDRS!C21=\"\",\"\",IDRS!C21)","v":""},null,null,null,null,null,null,null,null,null,null,null,null,null,null,null,null,null,"-","not filed"]
["CFINK",null,null,null,null,null,null,null,null,null,null,null,null,null,null,null,null,null,"CFINK","CFINK"]
[null,{"$f":"\"-\"","v":"-"},{"$f":"IF(IDRS!C23=\"\",\"\",IDRS!C23)","v":""},null,null,null,null,null,null,null,null,null,null,null,null,null,null,null,"_____________________________________",null,"-","None listed"]
["_____________________________________",null,null,null,null,null,null,null,null,null,null,null,null,null,null,null,null,null,null,"_____________________________________"]
[{"$f":"IDAP!A1","v":"IDAP"},null,{"$f":"IF(IDAP!A2=\"\",\"\",IDAP!A2)","v":"Click Here & Paste"},null,null,null,null,null,null,null,null,null,null,null,null,null,null,null,"IDAP","IDAP",null,""]
[null,null,{"$f":"IF(IDAP!A3=\"\",\"\",IDAP!A3)","v":""},null,null,null,null,null,null,null,null,null,null,null,null,null,null,null,null,null,null,"UTL- Neither TP or assets can be located  IRM 5.16.1.2.1(1)"]
[null,null,{"$f":"IF(IDAP!A4=\"\",\"\",IDAP!A4)","v":""},null,null,null,null,null,null,null,null,null,null,null,null,null,null,null,null,null,null,"UTC-ability to pay cannot be determined because TP cannot be contacted and no assets identified IRM 5.16.1.2.1(2)"]
[null,null,{"$f":"IF(IDAP!A5=\"\",\"\",IDAP!A5)","v":""},null,null,null,null,null,null,null,null,null,null,null,null,null,null,null,null,null,null,""]
[null,null,{"$f":"IF(IDAP!A6=\"\",\"\",IDAP!A6)","v":""},null,null,null,null,null,null,null,null,null,null,null,null,null,null,null,null,null,null,"IMF UTL/UTC  less than $10,000 requires: IRM 5.16.1.2.1(3)"]
[null,null,{"$f":"IF(IDAP!A7=\"\",\"\",IDAP!A7)","v":""},null,null,null,null,null,null,null,null,null,null,null,null,null,null,null,null,null,null,"-telephone directories"]
[null,null,{"$f":"IF(IDAP!A8=\"\",\"\",IDAP!A8)","v":""},null,null,null,null,null,null,null,null,null,null,null,null,null,null,null,null,null,null,"-IRP"]
[null,null,{"$f":"IF(IDAP!A9=\"\",\"\",IDAP!A9)","v":""},null,null,null,null,null,null,null,null,null,null,null,null,null,null,null,null,null,null,"-postal tracer"]
[null,null,{"$f":"IF(IDAP!A10=\"\",\"\",IDAP!A10)","v":""},null,null,null,null,null,null,null,null,null,null,null,null,null,null,null,null,null,null,""]
[null,null,{"$f":"IF(IDAP!A11=\"\",\"\",IDAP!A11)","v":""},null,null,null,null,null,null,null,null,null,null,null,null,null,null,null,null,null,null,"Over $10,000 above plus: IRM 5.16.1.2.1(4)"]
[null,null,{"$f":"IF(IDAP!A12=\"\",\"\",IDAP!A12)","v":""},null,null,null,null,null,null,null,null,null,null,null,null,null,null,null,null,null,null,""]
[null,null,{"$f":"IF(IDAP!A13=\"\",\"\",IDAP!A13)","v":""},null,null,null,null,null,null,null,null,null,null,null,null,null,null,null,null,null,null,"-DMV"]
[null,null,{"$f":"IF(IDAP!A14=\"\",\"\",IDAP!A14)","v":""},null,null,null,null,null,null,null,null,null,null,null,null,null,null,null,null,null,null,"-employment commission"]
[null,null,{"$f":"IF(IDAP!A15=\"\",\"\",IDAP!A15)","v":""},null,null,null,null,null,null,null,null,null,null,null,null,null,null,null,null,null,null,"-real & personal property records"]
[null,null,{"$f":"IF(IDAP!A16=\"\",\"\",IDAP!A16)","v":""},null,null,null,null,null,null,null,null,null,null,null,null,null,null,null,null,null,null,"-local licencing authorithes when TP has a business require=ing licence"]
[null,null,{"$f":"IF(IDAP!A17=\"\",\"\",IDAP!A17)","v":""},null,null,null,null,null,null,null,null,null,null,null,null,null,null,null,null,null,null,"-online services that help in locating TP (accurint)"]
[null,null,{"$f":"IF(IDAP!A18=\"\",\"\",IDAP!A18)","v":""},null,null,null,null,null,null,null,null,null,null,null,null,null,null,null,null,null,null,"-RTVUE/BRTVU/TRDBV if within the last 2 years. Determine if copy of return should be requested to help locate assets"]
[null,null,{"$f":"IF(IDAP!A19=\"\",\"\",IDAP!A19)","v":""},null,null,null,null,null,null,null,null,null,null,null,null,null,null,null,null,null,null,"-above list is not all inclusive Local management may require additional information IRM 5.16.1.2.1(5)"]
[null,null,{"$f":"IF(IDAP!A20=\"\",\"\",IDAP!A20)","v":""},null,null,null,null,null,null,null,null,null,null,null,null,null,null,null,null,null,null,""]
[null,null,{"$f":"IF(IDAP!A21=\"\",\"\",IDAP!A21)","v":""},null,null,null,null,null,null,null,null,null,null,null,null,null,null,null,null,null,null,"Over $25,000 above plus: IRM 5.16.1.2.1(6)"]
[null,null,{"$f":"IF(IDAP!A22=\"\",\"\",IDAP!A22)","v":""},null,null,null,null,null,null,null,null,null,null,null,null,null,null,null,null,null,null,"-field call "]
[null,null,{"$f":"IF(IDAP!A23=\"\",\"\",IDAP!A23)","v":""},null,null,null,null,null,null,null,null,null,null,null,null,null,null,null,null,null,null,""]
[null,null,{"$f":"IF(IDAP!A24=\"\",\"\",IDAP!A24)","v":""},null,null,null,null,null,null,null,null,null,null,null,null,null,null,null,null,null,null," Exceed $50,000 IMF & sole prop above plus: IRM 5.16.1.2.1(7)"]
[null,null,{"$f":"IF(IDAP!A25=\"\",\"\",IDAP!A25)","v":""},null,null,null,null,null,null,null,null,null,null,null,null,null,null,null,null,null,null,"-full credit report"]
[null,null,{"$f":"IF(IDAP!A26=\"\",\"\",IDAP!A26)","v":""},null,null,null,null,null,null,null,null,null,null,null,null,null,null,null,null,null,null,""]
[null,null,{"$f":"IF(IDAP!A27=\"\",\"\",IDAP!A27)","v":""},null,null,null,null,null,null,null,null,null,null,null,null,null,null,null,null,null,null,"Exceeds $100,000 above plus: IRM 5.16.1.2.1(8)"]
[null,null,{"$f":"IF(IDAP!A28=\"\",\"\",IDAP!A28)","v":""},null,null,null,null,null,null,null,null,null,null,null,null,null,null,null,null,null,null,"-Check AMDIS"]
[null,null,{"$f":"IF(IDAP!A29=\"\",\"\",IDAP!A29)","v":""},null,null,null,null,null,null,null,null,null,null,null,null,null,null,null,null,null,null,"-Request a passport check if there reason to believe TP travel overseas frequently see IRM 5.1.18.16"]
[null,null,{"$f":"IF(IDAP!A30=\"\",\"\",IDAP!A30)","v":""},null,null,null,null,null,null,null,null,null,null,null,null,null,null,null,null,null,null,"-Consider mandatory follow-up if there is a definite indication that contact should be made in the future IRM 5.16.1.2.1(9)"]
[null,null,{"$f":"IF(IDAP!A31=\"\",\"\",IDAP!A31)","v":""},null,null,null,null,null,null,null,null,null,null,null,null,null,null,null,null,null,null,""]
[null,null,{"$f":"IF(IDAP!A32=\"\",\"\",IDAP!A32)","v":""},null,null,null,null,null,null,null,null,null,null,null,null,null,null,null,null,null,null,""]
[null,null,{"$f":"IF(IDAP!A33=\"\",\"\",IDAP!A33)","v":""},null,null,null,null,null,null,null,null,null,null,null,null,null,null,null,null,null,null,""]
[null,null,{"$f":"IF(IDAP!A34=\"\",\"\",IDAP!A34)","v":""},null,null,null,null,null,null,null,null,null,null,null,null,null,null,null,null,null,null,""]
[null,null,{"$f":"IF(IDAP!A35=\"\",\"\",IDAP!A35)","v":""},null,null,null,null,null,null,null,null,null,null,null,null,null,null,null,null,null,null,""]
[null,null,{"$f":"IF(IDAP!A36=\"\",\"\",IDAP!A36)","v":""},null,null,null,null,null,null,null,null,null,null,null,null,null,null,null,null,null,null,""]
[null,null,{"$f":"IF(IDAP!A37=\"\",\"\",IDAP!A37)","v":""},null,null,null,null,null,null,null,null,null,null,null,null,null,null,null,null,null,null,""]
[null,null,{"$f":"IF(IDAP!A38=\"\",\"\",IDAP!A38)","v":""},null,null,null,null,null,null,null,null,null,null,null,null,null,null,null,null,null,null,"Requesting transfer of case to "]
[null,null,{"$f":"IF(IDAP!A39=\"\",\"\",IDAP!A39)","v":""},null,null,null,null,null,null,null,null,null,null,null,null,null,null,null,null,null,null,""]
[null,null,{"$f":"IF(IDAP!A40=\"\",\"\",IDAP!A40)","v":""},null,null,null,null,null,null,null,null,null,null,null,null,null,null,null,null,null,null,"Form 4759, Postal Tracer was returned on "]
[null,null,{"$f":"IF(IDAP!A41=\"\",\"\",IDAP!A41)","v":""},null,null,null,null,null,null,null,null,null,null,null,null,null,null,null,null,null,null,""]
[null,null,{"$f":"IF(IDAP!A42=\"\",\"\",IDAP!A42)","v":""},null,null,null,null,null,null,null,null,null,null,null,null,null,null,null,null,null,null,"Letter 4156 was sent on "]
[null,null,{"$f":"IF(IDAP!A43=\"\",\"\",IDAP!A43)","v":""},null,null,null,null,null,null,null,null,null,null,null,null,null,null,null,null,null,null,""]
[null,null,{"$f":"IF(IDAP!A44=\"\",\"\",IDAP!A44)","v":""},null,null,null,null,null,null,null,null,null,null,null,null,null,null,null,null,null,null,"5.1.8.1.1  Case Transfer without Courtesy Investigation"]
[null,null,{"$f":"IF(IDAP!A45=\"\",\"\",IDAP!A45)","v":""},null,null,null,null,null,null,null,null,null,null,null,null,null,null,null,null,null,null,"(1) A Courtesy Investigation is not required prior to transferring a case to a new"]
[null,null,{"$f":"IF(IDAP!A46=\"\",\"\",IDAP!A46)","v":""},null,null,null,null,null,null,null,null,null,null,null,null,null,null,null,null,null,null,"location if the new address is verified on Form 4759, Postal Tracer, Letter"]
[null,null,{"$f":"IF(IDAP!A47=\"\",\"\",IDAP!A47)","v":""},null,null,null,null,null,null,null,null,null,null,null,null,null,null,null,null,null,null,"4156 is sent to the new address, and any of the following conditions are met:"]
[null,null,{"$f":"IF(IDAP!A48=\"\",\"\",IDAP!A48)","v":""},null,null,null,null,null,null,null,null,null,null,null,null,null,null,null,null,null,null,"a. the taxpayer does not acknowledge receipt of the letter,"]
[null,null,{"$f":"IF(IDAP!A49=\"\",\"\",IDAP!A49)","v":""},null,null,null,null,null,null,null,null,null,null,null,null,null,null,null,null,null,null,"b. the letter is not returned undeliverable by the post office,"]
[null,null,{"$f":"IF(IDAP!A50=\"\",\"\",IDAP!A50)","v":""},null,null,null,null,null,null,null,null,null,null,null,null,null,null,null,null,null,null,"c. the post office does not provide an address change within 30 days, or"]
[null,null,{"$f":"IF(IDAP!A51=\"\",\"\",IDAP!A51)","v":""},null,null,null,null,null,null,null,null,null,null,null,null,null,null,null,null,null,null,"d. the taxpayer acknowledges receipt of the letter but does not respond sufficiently to dispose of the investigation."]
[null,null,{"$f":"IF(IDAP!A52=\"\",\"\",IDAP!A52)","v":""},null,null,null,null,null,null,null,null,null,null,null,null,null,null,null,null,null,null,""]
[null,null,{"$f":"IF(IDAP!A53=\"\",\"\",IDAP!A53)","v":""},null,null,null,null,null,null,null,null,null,null,null,null,null,null,null,null,null,null,"(2) Before transferring the case, the revenue officer will:"]
[null,null,{"$f":"IF(IDAP!A54=\"\",\"\",IDAP!A54)","v":""},null,null,null,null,null,null,null,null,null,null,null,null,null,null,null,null,null,null,"a. thoroughly investigate all known assets in the transferor area (this mayrequire search of local records) and ensure all appropriate enforcement action is taken, and"]
[null,null,{"$f":"IF(IDAP!A55=\"\",\"\",IDAP!A55)","v":""},null,null,null,null,null,null,null,null,null,null,null,null,null,null,null,null,null,null,"b. obtain group manager approval."]
[null,null,{"$f":"IF(IDAP!A56=\"\",\"\",IDAP!A56)","v":""},null,null,null,null,null,null,null,null,null,null,null,null,null,null,null,null,null,null,""]
[null,null,{"$f":"IF(IDAP!A57=\"\",\"\",IDAP!A57)","v":""},null,null,null,null,null,null,null,null,null,null,null,null,null,null,null,null,null,null,""]
[null,null,{"$f":"IF(IDAP!A58=\"\",\"\",IDAP!A58)","v":""},null,null,null,null,null,null,null,null,null,null,null,null,null,null,null,null,null,null,""]
[null,null,{"$f":"IF(IDAP!A59=\"\",\"\",IDAP!A59)","v":""},null,null,null,null,null,null,null,null,null,null,null,null,null,null,null,null,null,null,""]
[null,null,{"$f":"IF(IDAP!A60=\"\",\"\",IDAP!A60)","v":""},null,null,null,null,null,null,null,null,null,null,null,null,null,null,null,null,null,null,"RECEIPT DATE:"]
[null,null,{"$f":"IF(IDAP!A61=\"\",\"\",IDAP!A61)","v":""},null,null,null,null,null,null,null,null,null,null,null,null,null,null,null,null,null,null,""]
[null,null,{"$f":"IF(IDAP!A62=\"\",\"\",IDAP!A62)","v":""},null,null,null,null,null,null,null,null,null,null,null,null,null,null,null,null,null,null,"TYPE OF ASSIGNMENT:"]
[null,null,{"$f":"IF(IDAP!A63=\"\",\"\",IDAP!A63)","v":""},null,null,null,null,null,null,null,null,null,null,null,null,null,null,null,null,null,null,"ADDL BAL DUE/DEL RETS:"]
[null,null,{"$f":"IF(IDAP!A64=\"\",\"\",IDAP!A64)","v":""},null,null,null,null,null,null,null,null,null,null,null,null,null,null,null,null,null,null,""]
[null,null,{"$f":"IF(IDAP!A65=\"\",\"\",IDAP!A65)","v":""},null,null,null,null,null,null,null,null,null,null,null,null,null,null,null,null,null,null,"TP RIGHTS:"]
[null,null,{"$f":"IF(IDAP!A66=\"\",\"\",IDAP!A66)","v":""},null,null,null,null,null,null,null,null,null,null,null,null,null,null,null,null,null,null,"      PUB 1/594 (TC971 AC63):"]
[null,null,{"$f":"IF(IDAP!A67=\"\",\"\",IDAP!A67)","v":""},null,null,null,null,null,null,null,null,null,null,null,null,null,null,null,null,null,null,"      PUB 1660              :"]
[null,null,{"$f":"IF(IDAP!A68=\"\",\"\",IDAP!A68)","v":""},null,null,null,null,null,null,null,null,null,null,null,null,null,null,null,null,null,null,"      THIRD PARTY CONTACT   :"]
[null,null,{"$f":"IF(IDAP!A69=\"\",\"\",IDAP!A69)","v":""},null,null,null,null,null,null,null,null,null,null,null,null,null,null,null,null,null,null,""]
[null,null,{"$f":"IF(IDAP!A70=\"\",\"\",IDAP!A70)","v":""},null,null,null,null,null,null,null,null,null,null,null,null,null,null,null,null,null,null,"IMMINENT STATUES:"]
[null,null,{"$f":"IF(IDAP!A71=\"\",\"\",IDAP!A71)","v":""},null,null,null,null,null,null,null,null,null,null,null,null,null,null,null,null,null,null,""]
[null,null,{"$f":"IF(IDAP!A72=\"\",\"\",IDAP!A72)","v":""},null,null,null,null,null,null,null,null,null,null,null,null,null,null,null,null,null,null,"IDRS REVIEW "]
[null,null,{"$f":"IF(IDAP!A73=\"\",\"\",IDAP!A73)","v":""},null,null,null,null,null,null,null,null,null,null,null,null,null,null,null,null,null,null,"INOLEX -  "]
[null,null,{"$f":"IF(IDAP!A74=\"\",\"\",IDAP!A74)","v":""},null,null,null,null,null,null,null,null,null,null,null,null,null,null,null,null,null,null,"      Cross Ref. Info:"]
[null,null,{"$f":"IF(IDAP!A75=\"\",\"\",IDAP!A75)","v":""},null,null,null,null,null,null,null,null,null,null,null,null,null,null,null,null,null,null,""]
[null,null,{"$f":"IF(IDAP!A76=\"\",\"\",IDAP!A76)","v":""},null,null,null,null,null,null,null,null,null,null,null,null,null,null,null,null,null,null,"INOLES/SUMRY - "]
[null,null,{"$f":"IF(IDAP!A77=\"\",\"\",IDAP!A77)","v":""},null,null,null,null,null,null,null,null,null,null,null,null,null,null,null,null,null,null,"      Filing Req's:"]
[null,null,{"$f":"IF(IDAP!A78=\"\",\"\",IDAP!A78)","v":""},null,null,null,null,null,null,null,null,null,null,null,null,null,null,null,null,null,null,"      Year Est.:"]
[null,null,{"$f":"IF(IDAP!A79=\"\",\"\",IDAP!A79)","v":""},null,null,null,null,null,null,null,null,null,null,null,null,null,null,null,null,null,null,""]
[null,null,{"$f":"IF(IDAP!A80=\"\",\"\",IDAP!A80)","v":""},null,null,null,null,null,null,null,null,null,null,null,null,null,null,null,null,null,null,"BMFOLI/IMFOLI -"]
[null,null,{"$f":"IF(IDAP!A81=\"\",\"\",IDAP!A81)","v":""},null,null,null,null,null,null,null,null,null,null,null,null,null,null,null,null,null,null,"      "]
[null,null,{"$f":"IF(IDAP!A82=\"\",\"\",IDAP!A82)","v":""},null,null,null,null,null,null,null,null,null,null,null,null,null,null,null,null,null,null,"      DEPOSIT SCHD:"]
[null,null,{"$f":"IF(IDAP!A83=\"\",\"\",IDAP!A83)","v":""},null,null,null,null,null,null,null,null,null,null,null,null,null,null,null,null,null,null,""]
[null,null,{"$f":"IF(IDAP!A84=\"\",\"\",IDAP!A84)","v":""},null,null,null,null,null,null,null,null,null,null,null,null,null,null,null,null,null,null,"      CURRENT DEPOSITS:"]
[null,null,{"$f":"IF(IDAP!A85=\"\",\"\",IDAP!A85)","v":""},null,null,null,null,null,null,null,null,null,null,null,null,null,null,null,null,null,null,""]
[null,null,{"$f":"IF(IDAP!A86=\"\",\"\",IDAP!A86)","v":""},null,null,null,null,null,null,null,null,null,null,null,null,null,null,null,null,null,null,"      ESTIMATED TAX PMTS:"]
[null,null,{"$f":"IF(IDAP!A87=\"\",\"\",IDAP!A87)","v":""},null,null,null,null,null,null,null,null,null,null,null,null,null,null,null,null,null,null,""]
[null,null,{"$f":"IF(IDAP!A88=\"\",\"\",IDAP!A88)","v":""},null,null,null,null,null,null,null,null,null,null,null,null,null,null,null,null,null,null,""]
[null,null,{"$f":"IF(IDAP!A89=\"\",\"\",IDAP!A89)","v":""},null,null,null,null,null,null,null,null,null,null,null,null,null,null,null,null,null,null,"RTVUE/BRTVU - "]
[null,null,{"$f":"IF(IDAP!A90=\"\",\"\",IDAP!A90)","v":""},null,null,null,null,null,null,null,null,null,null,null,null,null,null,null,null,null,null,"      Last Return filed: "]
[null,null,{"$f":"IF(IDAP!A91=\"\",\"\",IDAP!A91)","v":""},null,null,null,null,null,null,null,null,null,null,null,null,null,null,null,null,null,null,""]
[null,null,{"$f":"IF(IDAP!A92=\"\",\"\",IDAP!A92)","v":""},null,null,null,null,null,null,null,null,null,null,null,null,null,null,null,null,null,null,"IRPRTRO/LEVYS/SUPOL -"]
[null,null,{"$f":"IF(IDAP!A93=\"\",\"\",IDAP!A93)","v":""},null,null,null,null,null,null,null,null,null,null,null,null,null,null,null,null,null,null,"      IRPTR:"]
[null,null,{"$f":"IF(IDAP!A94=\"\",\"\",IDAP!A94)","v":""},null,null,null,null,null,null,null,null,null,null,null,null,null,null,null,null,null,null,""]
[null,null,{"$f":"IF(IDAP!A95=\"\",\"\",IDAP!A95)","v":""},null,null,null,null,null,null,null,null,null,null,null,null,null,null,null,null,null,null,"      LEVYS:"]
[null,null,{"$f":"IF(IDAP!A96=\"\",\"\",IDAP!A96)","v":""},null,null,null,null,null,null,null,null,null,null,null,null,null,null,null,null,null,null,""]
[null,null,{"$f":"IF(IDAP!A97=\"\",\"\",IDAP!A97)","v":""},null,null,null,null,null,null,null,null,null,null,null,null,null,null,null,null,null,null,"      SUPOL:"]
[null,null,{"$f":"IF(IDAP!A98=\"\",\"\",IDAP!A98)","v":""},null,null,null,null,null,null,null,null,null,null,null,null,null,null,null,null,null,null,""]
[null,null,{"$f":"IF(IDAP!A99=\"\",\"\",IDAP!A99)","v":""},null,null,null,null,null,null,null,null,null,null,null,null,null,null,null,null,null,null,"NFTL(TC 582):"]
[null,null,{"$f":"IF(IDAP!A100=\"\",\"\",IDAP!A100)","v":""},null,null,null,null,null,null,null,null,null,null,null,null,null,null,null,null,null,null,""]
[null,null,{"$f":"IF(IDAP!A101=\"\",\"\",IDAP!A101)","v":""},null,null,null,null,null,null,null,null,null,null,null,null,null,null,null,null,null,null,"CFINK:"]
[null,null,{"$f":"IF(IDAP!A102=\"\",\"\",IDAP!A102)","v":""},null,null,null,null,null,null,null,null,null,null,null,null,null,null,null,null,null,null,""]
[null,null,{"$f":"IF(IDAP!A103=\"\",\"\",IDAP!A103)","v":""},null,null,null,null,null,null,null,null,null,null,null,null,null,null,null,null,null,null,"TFRP:"]
[null,null,{"$f":"IF(IDAP!A104=\"\",\"\",IDAP!A104)","v":""},null,null,null,null,null,null,null,null,null,null,null,null,null,null,null,null,null,null,""]
[null,null,{"$f":"IF(IDAP!A105=\"\",\"\",IDAP!A105)","v":""},null,null,null,null,null,null,null,null,null,null,null,null,null,null,null,null,null,null,"PREVIOUS HISTORY -"]
[null,null,{"$f":"IF(IDAP!A106=\"\",\"\",IDAP!A106)","v":""},null,null,null,null,null,null,null,null,null,null,null,null,null,null,null,null,null,null,""]
[null,null,{"$f":"IF(IDAP!A107=\"\",\"\",IDAP!A107)","v":""},null,null,null,null,null,null,null,null,null,null,null,null,null,null,null,null,null,null,"AMS/ACS:"]
[null,null,{"$f":"IF(IDAP!A108=\"\",\"\",IDAP!A108)","v":""},null,null,null,null,null,null,null,null,null,null,null,null,null,null,null,null,null,null,""]
[null,null,{"$f":"IF(IDAP!A109=\"\",\"\",IDAP!A109)","v":""},null,null,null,null,null,null,null,null,null,null,null,null,null,null,null,null,null,null,"ARCHIVE:"]
[null,null,{"$f":"IF(IDAP!A110=\"\",\"\",IDAP!A110)","v":""},null,null,null,null,null,null,null,null,null,null,null,null,null,null,null,null,null,null,""]
[null,null,{"$f":"IF(IDAP!A111=\"\",\"\",IDAP!A111)","v":""},null,null,null,null,null,null,null,null,null,null,null,null,null,null,null,null,null,null,"ICS:"]
[null,null,{"$f":"IF(IDAP!A112=\"\",\"\",IDAP!A112)","v":""},null,null,null,null,null,null,null,null,null,null,null,null,null,null,null,null,null,null,""]
[null,null,{"$f":"IF(IDAP!A113=\"\",\"\",IDAP!A113)","v":""},null,null,null,null,null,null,null,null,null,null,null,null,null,null,null,null,null,null,"MISCELLANEOUS IDRS REVIEWS -"]
[null,null,{"$f":"IF(IDAP!A114=\"\",\"\",IDAP!A114)","v":""},null,null,null,null,null,null,null,null,null,null,null,null,null,null,null,null,null,null,""]
[null,null,{"$f":"IF(IDAP!A115=\"\",\"\",IDAP!A115)","v":""},null,null,null,null,null,null,null,null,null,null,null,null,null,null,null,null,null,null,"      BANKRUPTCY INDICATORS (TC 520):"]
[null,null,{"$f":"IF(IDAP!A116=\"\",\"\",IDAP!A116)","v":""},null,null,null,null,null,null,null,null,null,null,null,null,null,null,null,null,null,null,"      CRIMINAL INVESTIGATION (TC 914): "]
[null,null,{"$f":"IF(IDAP!A117=\"\",\"\",IDAP!A117)","v":""},null,null,null,null,null,null,null,null,null,null,null,null,null,null,null,null,null,null,"      EXEMPT ORGANIZATIONS:"]
[null,null,{"$f":"IF(IDAP!A118=\"\",\"\",IDAP!A118)","v":""},null,null,null,null,null,null,null,null,null,null,null,null,null,null,null,null,null,null,"      IRS EMPLOYEE:"]
[null,null,{"$f":"IF(IDAP!A119=\"\",\"\",IDAP!A119)","v":""},null,null,null,null,null,null,null,null,null,null,null,null,null,null,null,null,null,null,"      CAUTION/PDT INDICATORS:"]
[null,null,{"$f":"IF(IDAP!A120=\"\",\"\",IDAP!A120)","v":""},null,null,null,null,null,null,null,null,null,null,null,null,null,null,null,null,null,null,"      PENDING INSTALLMENT AGREEMENTS (TC 971 AC43):"]
[null,null,{"$f":"IF(IDAP!A121=\"\",\"\",IDAP!A121)","v":""},null,null,null,null,null,null,null,null,null,null,null,null,null,null,null,null,null,null,"      INNOCENT SPOUSE CLAIMS (TC 971 AC65):"]
[null,null,{"$f":"IF(IDAP!A122=\"\",\"\",IDAP!A122)","v":""},null,null,null,null,null,null,null,null,null,null,null,null,null,null,null,null,null,null,"      FPLP INDICATORS:"]
[null,null,{"$f":"IF(IDAP!A123=\"\",\"\",IDAP!A123)","v":""},null,null,null,null,null,null,null,null,null,null,null,null,null,null,null,null,null,null,"      SPECIAL HANDLING REQD:"]
[null,null,{"$f":"IF(IDAP!A124=\"\",\"\",IDAP!A124)","v":""},null,null,null,null,null,null,null,null,null,null,null,null,null,null,null,null,null,null,""]
[null,null,{"$f":"IF(IDAP!A125=\"\",\"\",IDAP!A125)","v":""},null,null,null,null,null,null,null,null,null,null,null,null,null,null,null,null,null,null,"LOCATOR/RESEARCH SOURCES:"]
[null,null,{"$f":"IF(IDAP!A126=\"\",\"\",IDAP!A126)","v":""},null,null,null,null,null,null,null,null,null,null,null,null,null,null,null,null,null,null,""]
[null,null,{"$f":"IF(IDAP!A127=\"\",\"\",IDAP!A127)","v":""},null,null,null,null,null,null,null,null,null,null,null,null,null,null,null,null,null,null,"DIRECTORY ASSISTANCE:"]
[null,null,{"$f":"IF(IDAP!A128=\"\",\"\",IDAP!A128)","v":""},null,null,null,null,null,null,null,null,null,null,null,null,null,null,null,null,null,null,""]
[null,null,{"$f":"IF(IDAP!A129=\"\",\"\",IDAP!A129)","v":""},null,null,null,null,null,null,null,null,null,null,null,null,null,null,null,null,null,null,"REAL ESTATE:"]
[null,null,{"$f":"IF(IDAP!A130=\"\",\"\",IDAP!A130)","v":""},null,null,null,null,null,null,null,null,null,null,null,null,null,null,null,null,null,null,""]
[null,null,{"$f":"IF(IDAP!A131=\"\",\"\",IDAP!A131)","v":""},null,null,null,null,null,null,null,null,null,null,null,null,null,null,null,null,null,null,"DMV:"]
[null,null,{"$f":"IF(IDAP!A132=\"\",\"\",IDAP!A132)","v":""},null,null,null,null,null,null,null,null,null,null,null,null,null,null,null,null,null,null,""]
[null,null,{"$f":"IF(IDAP!A133=\"\",\"\",IDAP!A133)","v":""},null,null,null,null,null,null,null,null,null,null,null,null,null,null,null,null,null,null,"PERSONAL PROPERTY:"]
[null,null,{"$f":"IF(IDAP!A134=\"\",\"\",IDAP!A134)","v":""},null,null,null,null,null,null,null,null,null,null,null,null,null,null,null,null,null,null,""]
[null,null,{"$f":"IF(IDAP!A135=\"\",\"\",IDAP!A135)","v":""},null,null,null,null,null,null,null,null,null,null,null,null,null,null,null,null,null,null,"SOS:"]
[null,null,{"$f":"IF(IDAP!A136=\"\",\"\",IDAP!A136)","v":""},null,null,null,null,null,null,null,null,null,null,null,null,null,null,null,null,null,null,""]
[null,null,{"$f":"IF(IDAP!A137=\"\",\"\",IDAP!A137)","v":""},null,null,null,null,null,null,null,null,null,null,null,null,null,null,null,null,null,null,"ACCURINT:"]
[null,null,{"$f":"IF(IDAP!A138=\"\",\"\",IDAP!A138)","v":""},null,null,null,null,null,null,null,null,null,null,null,null,null,null,null,null,null,null,""]
[null,null,{"$f":"IF(IDAP!A139=\"\",\"\",IDAP!A139)","v":""},null,null,null,null,null,null,null,null,null,null,null,null,null,null,null,null,null,null,""]
[null,null,{"$f":"IF(IDAP!A140=\"\",\"\",IDAP!A140)","v":""},null,null,null,null,null,null,null,null,null,null,null,null,null,null,null,null,null,null,"ISSUES TO ADDRESS DURING CONTACT:"]
[null,null,{"$f":"IF(IDAP!A141=\"\",\"\",IDAP!A141)","v":""},null,null,null,null,null,null,null,null,null,null,null,null,null,null,null,null,null,null,""]
[null,null,{"$f":"IF(IDAP!A142=\"\",\"\",IDAP!A142)","v":""},null,null,null,null,null,null,null,null,null,null,null,null,null,null,null,null,null,null,""]
[null,null,{"$f":"IF(IDAP!A143=\"\",\"\",IDAP!A143)","v":""},null,null,null,null,null,null,null,null,null,null,null,null,null,null,null,null,null,null,"PLAN OF ACTION:"]
[null,null,{"$f":"IF(IDAP!A144=\"\",\"\",IDAP!A144)","v":""},null,null,null,null,null,null,null,null,null,null,null,null,null,null,null,null,null,null,""]
[null,null,{"$f":"IF(IDAP!A145=\"\",\"\",IDAP!A145)","v":""},null,null,null,null,null,null,null,null,null,null,null,null,null,null,null,null,null,null,""]
[null,null,{"$f":"IF(IDAP!A146=\"\",\"\",IDAP!A146)","v":""},null,null,null,null,null,null,null,null,null,null,null,null,null,null,null,null,null,null,""]